[Event "FRA-ch Teams Top 16-B 2022"]
[Site "Chartres"]
[Date "2022.06.14"]
[Round "6.4"]
[White "Amin, Bassem"]
[Black "Movsesian, Sergei"]
[Result "0-1"]
[ECO "A08"]
[WhiteElo "2686"]
[BlackElo "2600"]
[Annotator "TA"]
[PlyCount "76"]
[EventDate "2022.06.09"]
[EventType "team-tourn"]
[EventCountry "FRA"]
[SourceTitle "playchess.com"]
[Source "ChessBase"]
[SourceQuality "1"]
[TimeControl "40/5400+30:1800+30"]

{[%evp 18,76,22,-18,0,0,0,0,0,0,0,0,33,33,35,20,52,43,47,15,14,13,20,0,0,-27,0,-17,-12,-43,-10,-10,-10,-10,0,0,0,-26,-33,-30,-20,-5,0,-131,-143,-235,-239,-261,-253,-262,-253,-481,-463,-794,-796,-796,-795,-786,-786,-744,-700]} 1. e4 {[%emt 0:04:02]} c5 {[%emt 0:00:07]} 2. Nf3 {[%emt 0:00:07]} e6 {[%emt 0:00:26]} 3. d3 {[%emt 0:01:14]} Nc6 {[%emt 0:01:02]} 4. g3 {[%emt 0:00:12]} d5 {[%emt 0:00:26]} 5. Nbd2 {[%emt 0:00:22]} Bd6 {[%emt 0:00:33]} 6. Bg2 {[%emt 0:00:08]} Nge7 {[%emt 0:00:08]} 7. O-O {[%emt 0:00:10]} O-O {[%emt 0:00:11]} 8. Re1 {[%emt 0:00:10]} Bc7 {[%emt 0:00:12]} 9. c3 {[%emt 0:03:46]} b6 {[%emt 0:00:50]} 10. e5 {[%emt 0:06:42]} Ba6 {[%emt 0:01:03] A08: King's Indian Attack.} 11. d4 {[%emt 0:14:03]} cxd4 {[%emt 0:01:20]} 12. cxd4 {[%emt 0:00:23]} Bd3 {[%emt 0:00:36] [#] The position is equal.} 13. Bf1 $146 {[%emt 0:06:20]} ({Predecessor:} 13. Nf1 Be4 14. h4 b5 15. Bh3 Bxf3 16. Qxf3 Nxd4 17. Qd3 Ndc6 18. Bf4 Ng6 19. Qc3 Nxf4 20. gxf4 Qxh4 21. Qxc6 {0-1 (31) Kratochvil,J (2300)-Zpevak,P (2345) Kouty nad Desnou 2018}) 13... Bg6 {[%emt 0:17:56]} 14. a3 {[%emt 0:04:39]} a6 {[%emt 0:09:42]} 15. b4 {[%emt 0:01:46]} b5 {[%emt 0:03:31]} 16. Nb3 {[%emt 0:08:39]} h6 {[%emt 0:08:34]} 17. Nh4 {[%emt 0:08:40]} Bh7 {[%emt 0:01:48]} 18. Bd3 {[%emt 0:00:08]} Bxd3 {[%emt 0:02:13]} 19. Qxd3 {[%emt 0:00:02]} Bb6 {[%emt 0:05:13]} 20. Be3 {[%emt 0:02:58]} Qd7 {[%emt 0:02:57]} 21. Rac1 {[%emt 0:02:50]} Rfc8 {[%emt 0:02:48]} 22. f4 {[%emt 0:01:30]} a5 {[%emt 0:02:00]} 23. Nc5 $1 {[%emt 0:09:49]} Bxc5 {[%emt 0:02:07]} (23... Qa7 $5 {[%cal Ra5b4]}) 24. bxc5 {[%emt 0:00:06]} b4 {[%emt 0:02:44]} 25. a4 $1 {[%emt 0:00:44]} b3 {[%emt 0:01:59]} 26. Qxb3 {[%emt 0:08:03]} Rcb8 $36 {[%emt 0:00:23][%mdl 2048] Black is more active.} 27. Qd3 {[%emt 0:00:38]} Rb4 {[%emt 0:01:01]} 28. g4 {[%emt 0:00:24]} Rab8 {[%emt 0:10:45]} 29. Kh1 {[%emt 0:04:24]} Rxa4 {[%emt 0:04:50][%cal Bb4a4,Ba4a2,Ba2a1,Ba1a3][%mdl 32]} 30. Rg1 {[%emt 0:03:28]} (30. f5 $11 {keeps the balance.}) 30... Rb2 $17 {[%emt 0:02:19]} 31. Qa6 {[%emt 0:07:38]} (31. Rgd1 $17) 31... Qc8 $19 {[%emt 0:04:59]} ({Stronger than} 31... Nxd4 32. Bxd4 Rxd4 33. Qd6) 32. Qd3 {[%emt 0:00:46]} Raa2 {[%emt 0:01:55][%csl Ga2][%cal Rb2h2] [#]} 33. Rg2 {[%emt 0:00:09]} Qb7 {[%emt 0:00:38][%cal Oe7g6] White must now prevent ...Ng6!} 34. Rd1 $2 {[%emt 0:01:48]} (34. Bd2) 34... Ng6 {[%emt 0:03:07] Black is clearly winning.} 35. Rxb2 {[%emt 0:00:38]} (35. Bc1 $142 Nxh4 36. Rxb2 Rxb2 37. Bxb2 Qxb2 38. Qd2 Qxd2 39. Rxd2) 35... Qxb2 {[%emt 0:00:08][%csl Ga2][%cal Rb2h2]} 36. Rd2 {[%emt 0:00:04]} Ra1+ {[%emt 0:00:53]} 37. Kg2 {[%emt 0:00:48]} Nxh4+ {[%emt 0:00:20] Pair of Knights!} 38. Kh3 {[%emt 0:00:04]} Ra3 {[%emt 0:00:26] Weighted Error Value: White=0.35/Black=0.07 (flawless)} 0-1

[Event "FRA-ch Teams Top 16-B 2022"]
[Site "Chartres"]
[Date "2022.06.14"]
[Round "6.5"]
[White "Esipenko, Andrey"]
[Black "Tregubov, Pavel V."]
[Result "1-0"]
[ECO "E33"]
[WhiteElo "2709"]
[BlackElo "2541"]
[Annotator "TA"]
[PlyCount "83"]
[EventDate "2022.06.09"]
[EventType "team-tourn"]
[EventCountry "FRA"]
[SourceTitle "playchess.com"]
[Source "ChessBase"]
[SourceQuality "1"]
[TimeControl "40/5400+30:1800+30"]

{[%evp 17,83,32,34,18,21,21,34,29,42,0,11,0,11,7,8,8,9,0,26,21,16,14,18,14,13,4,5,0,6,8,12,10,11,18,13,12,20,0,2,0,0,0,0,0,0,0,0,0,0,0,0,0,162,170,283,292,638,617,1812,1741,1703,1731,1659,1636,1462,791,673,558]} 1. d4 {[%emt 0:00:13]} Nf6 {[%emt 0:02:37]} 2. c4 {[%emt 0:00:13]} e6 {[%emt 0:00:06]} 3. Nf3 {[%emt 0:00:32]} Nc6 {[%emt 0:05:08]} 4. Nc3 {[%emt 0:17:16]} Bb4 {[%emt 0:00:17]} 5. Qc2 {[%emt 0:00:24]} d6 {[%emt 0:00:34]} 6. Bd2 {[%emt 0:00:27]} O-O {[%emt 0:03:25]} 7. a3 {[%emt 0:01:56]} Bxc3 {[%emt 0:00:09]} 8. Bxc3 {[%emt 0:00:05]} Qe7 {[%emt 0:04:36]} 9. e3 {[%emt 0:05:37]} e5 {[%emt 0:00:53] 9...e5 is better than 9...a5.} 10. d5 {[%emt 0:01:05] E33: Nimzo-Indian: Classical: 4...Nc6.} Nb8 {[%emt 0:00:11]} 11. Nd2 {[%emt 0:03:18]} a5 {[%emt 0:03:07][%cal Ba7a5,Ba5a4][%mdl 32]} 12. b3 {[%emt 0:02:51] [#] White is slightly better.} b5 $146 {[%emt 0:11:16]} ({Predecessor:} 12... c6 13. dxc6 Nxc6 14. Bd3 Be6 15. O-O d5 16. cxd5 Bxd5 17. Rfd1 Rac8 {½-½ (17) Wagner,D (2580)-Nisipeanu,L (2670) Skopje 2019}) 13. Be2 {[%emt 0:18:45]} bxc4 {[%emt 0:14:04]} 14. bxc4 {[%emt 0:01:24]} Nbd7 {[%emt 0:06:44]} 15. Nb3 {[%emt 0:02:36]} a4 {[%emt 0:02:41]} 16. Nd2 {[%emt 0:00:10]} Nc5 {[%emt 0:00:22]} 17. O-O {[%emt 0:00:14]} Bd7 {[%emt 0:03:38]} 18. Bb4 {[%emt 0:01:28]} Na6 {[%emt 0:03:03]} 19. Rfb1 {[%emt 0:02:54]} Rfb8 {[%emt 0:01:28]} 20. e4 {[%emt 0:01:48]} Be8 {[%emt 0:05:09]} 21. Qd3 {[%emt 0:05:21]} Nd7 {[%emt 0:00:51][%cal Bf6d7,Bd7c5,Bc5b3][%mdl 32]} 22. Bd1 {[%emt 0:00:42]} Ndc5 {[%emt 0:06:12]} 23. Qe3 {[%emt 0:00:59]} Rb7 {[%emt 0:00:53]} (23... Qh4 {with more complications.} 24. Bc2 Bd7 25. Bc3 f6) 24. Bc3 {[%emt 0:02:16]} Rab8 {[%emt 0:00:14]} 25. Rxb7 {[%emt 0:04:50]} Rxb7 {[%emt 0:00:07]} 26. Bc2 {[%emt 0:01:45]} f6 {[%emt 0:03:10]} 27. Nf1 {[%emt 0:01:10]} Nb3 {[%emt 0:03:01] Pair of Knights!} 28. Rd1 {[%emt 0:00:30]} Nac5 {[%emt 0:00:20]} 29. Ng3 {[%emt 0:01:17]} Rb8 {[%emt 0:07:06]} 30. h3 {[%emt 0:04:28]} Qf8 {[%emt 0:02:59]} 31. Rf1 {[%emt 0:00:53][%cal Bd1f1,Bf1f4,Bf4f6][%mdl 32]} Bg6 {[%emt 0:02:11]} 32. h4 {[%emt 0:03:06]} Qe8 {[%emt 0:02:10]} 33. f4 {[%emt 0:06:54]} exf4 {[%emt 0:03:22]} 34. Rxf4 {[%emt 0:00:11]} h5 $2 {[%emt 0:02:02] [#]} (34... Nd7 $11) 35. Bxf6 $1 $18 {[%emt 0:03:35][%cal Of4f5]} gxf6 {[%emt 0:00:32]} (35... Nd7 $142 36. Bc3 Ne5) 36. Rxf6 {[%emt 0:00:04] Qg5 is the strong threat.} Nd7 $2 {[%emt 0:00:20] [#]} (36... Qe5 37. Rxg6+ Kf7) 37. Nxh5 $1 {[%emt 0:01:31][%mdl 512] White is clearly winning.} Nf8 {[%emt 0:02:32] [#] White must now prevent ...Qe5.} (37... Ne5 38. Qg5) 38. Qh6 $1 {[%emt 0:04:11][%csl Gh5][%cal Rh6g7]} Bxh5 {[%emt 0:00:35]} 39. e5 $1 {[%emt 0:00:03][%cal Of6f8] White threatens Rxf8+! and mate.} Qe7 {[%emt 0:01:04]} 40. Qxh5 {[%emt 0:01:42] And now Bg6 would win.} Nd4 {[%emt 0:00:40]} 41. Qg4+ {[%emt 0:31:10]} Qg7 {[%emt 0:01:30]} 42. Qxd4 {[%emt 0:00:00] Weighted Error Value: White=0.06 (flawless) /Black=0.31} 1-0

[Event "FRA-ch Teams Top 16-B 2022"]
[Site "Chartres"]
[Date "2022.06.14"]
[Round "6.6"]
[White "Kosteniuk, Alexandra"]
[Black "Degraeve, Jean-Marc"]
[Result "1/2-1/2"]
[ECO "B06"]
[WhiteElo "2513"]
[BlackElo "2520"]
[Annotator "RC"]
[PlyCount "80"]
[EventDate "2022.06.09"]
[EventType "team-tourn"]
[EventCountry "FRA"]
[SourceTitle "playchess.com"]
[Source "ChessBase"]
[SourceQuality "1"]
[TimeControl "40/5400+30:1800+30"]

1. e4 {[%emt 0:02:40]} c5 {[%emt 0:00:15]} 2. Nf3 {[%emt 0:00:15]} g6 {[%emt 0:00:35]} 3. c3 {[%emt 0:00:09]} d5 {[%emt 0:00:37]} 4. exd5 {[%emt 0:00:05]} Qxd5 {[%emt 0:00:08]} 5. d4 {[%emt 0:00:11]} Bg7 {[%emt 0:00:10]} 6. Nbd2 {[%emt 0:00:12]} cxd4 {[%emt 0:02:03]} 7. Bc4 {[%emt 0:00:12]} Qd8 {[%emt 0:02:19]} 8. Nxd4 {[%emt 0:00:25]} Nf6 {[%emt 0:02:18]} 9. O-O {[%emt 0:00:53]} O-O {[%emt 0:00:06]} 10. N2f3 {[%emt 0:00:15]} Qc7 {[%emt 0:14:58]} 11. Qe2 {[%emt 0:13:06]} a6 {[%emt 0:02:08]} 12. a4 {[%emt 0:00:49]} Nc6 {[%emt 0:05:12]} 13. Nxc6 {[%emt 0:03:19]} Qxc6 {[%emt 0:02:31]} 14. Ne5 {[%emt 0:00:26]} Qe4 {[%emt 0:01:03]} 15. Re1 {[%emt 0:00:27]} Qxe2 {[%emt 0:00:30]} 16. Rxe2 {[%emt 0:00:03]} e6 {[%emt 0:00:14]} 17. Be3 {[%emt 0:07:16]} Nd5 {[%emt 0:10:16]} 18. Bc5 {[%emt 0:00:34]} Re8 {[%emt 0:21:18]} 19. a5 {[%emt 0:12:34]} f6 {[%emt 0:07:08]} 20. Nd3 {[%emt 0:08:17]} Bd7 {[%emt 0:05:09]} 21. Rae1 {[%emt 0:01:15]} Kh8 {[%emt 0:04:46]} 22. g3 {[%emt 0:04:19]} Rac8 {[%emt 0:08:17]} 23. Bb3 {[%emt 0:00:19]} Rcd8 {[%emt 0:05:39]} 24. c4 {[%emt 0:02:06]} Nc7 {[%emt 0:02:17]} 25. Bb6 {[%emt 0:00:19]} Rc8 {[%emt 0:00:02]} 26. Nc5 {[%emt 0:00:14]} Bc6 {[%emt 0:00:05]} 27. Bxc7 {[%emt 0:08:21]} Rxc7 {[%emt 0:00:03]} 28. Nxe6 {[%emt 0:00:23]} Rce7 {[%emt 0:00:42]} 29. Bd1 {[%emt 0:09:21]} Bh6 {[%emt 0:01:50]} 30. Nd4 {[%emt 0:04:36]} Rxe2 {[%emt 0:00:18]} 31. Bxe2 {[%emt 0:00:36]} Bd2 {[%emt 0:01:08]} 32. Rd1 {[%emt 0:02:23]} Bxa5 {[%emt 0:00:07]} 33. Nxc6 {[%emt 0:00:04]} bxc6 {[%emt 0:00:05]} 34. Kf1 {[%emt 0:00:13]} Bb4 {[%emt 0:00:14]} 35. Bf3 {[%emt 0:01:09]} Re6 {[%emt 0:00:31]} 36. Rd7 {[%emt 0:02:24]} a5 {[%emt 0:01:31]} 37. h4 {[%emt 0:18:50]} Re1+ {[%emt 0:01:32]} 38. Kg2 {[%emt 0:00:00]} Rb1 {[%emt 0:00:11]} 39. h5 {[%emt 0:00:00]} gxh5 {[%emt 0:00:24]} 40. Rxh7+ {[%emt 0:00:00]} Kxh7 {[%emt 0:00:23]} 1/2-1/2

[Event "FRA-ch Teams Top 16-B 2022"]
[Site "Chartres"]
[Date "2022.06.14"]
[Round "6.7"]
[White "Gozzoli, Yannick"]
[Black "Hamdouchi, Hicham"]
[Result "1/2-1/2"]
[ECO "E94"]
[WhiteElo "2591"]
[BlackElo "2536"]
[Annotator "RC"]
[PlyCount "67"]
[EventDate "2022.06.09"]
[EventType "team-tourn"]
[EventCountry "FRA"]
[SourceTitle "playchess.com"]
[Source "ChessBase"]
[SourceQuality "1"]
[TimeControl "40/5400+30:1800+30"]

1. d4 {[%emt 0:00:18]} Nf6 {[%emt 0:00:40]} 2. c4 {[%emt 0:00:13]} d6 {[%emt 0:00:07]} 3. Nf3 {[%emt 0:01:06]} Nbd7 {[%emt 0:01:37]} 4. Nc3 {[%emt 0:00:18]} e5 {[%emt 0:00:09]} 5. e4 {[%emt 0:00:20]} g6 {[%emt 0:00:21]} 6. Be2 {[%emt 0:00:05]} Bg7 {[%emt 0:00:05]} 7. O-O {[%emt 0:00:06]} O-O {[%emt 0:00:05]} 8. Be3 {[%emt 0:00:04]} exd4 {[%emt 0:00:34]} 9. Nxd4 {[%emt 0:00:05]} Re8 {[%emt 0:00:08]} 10. f3 {[%emt 0:15:11]} c6 {[%emt 0:02:31]} 11. Qc2 {[%emt 0:06:48]} a6 {[%emt 0:03:18]} 12. Rad1 {[%emt 0:08:26]} Qc7 {[%emt 0:04:07]} 13. Bf2 {[%emt 0:10:35]} Ne5 {[%emt 0:04:24]} 14. Kh1 {[%emt 0:07:46]} c5 {[%emt 0:28:33]} 15. Nb3 {[%emt 0:00:23]} Be6 {[%emt 0:00:18]} 16. f4 {[%emt 0:04:50]} Nxc4 {[%emt 0:08:33]} 17. f5 {[%emt 0:01:38]} Nxb2 {[%emt 0:00:08]} 18. fxe6 {[%emt 0:07:09]} Nxd1 {[%emt 0:00:13]} 19. exf7+ {[%emt 0:00:05]} Qxf7 {[%emt 0:00:12]} 20. Rxd1 {[%emt 0:00:40]} Qe6 {[%emt 0:10:56]} 21. Bf3 {[%emt 0:04:51]} Rac8 {[%emt 0:02:24]} 22. Bg3 {[%emt 0:07:27]} Rcd8 {[%emt 0:17:06]} 23. h3 {[%emt 0:08:43]} b5 {[%emt 0:01:38]} 24. Nd2 {[%emt 0:03:00]} Kh8 {[%emt 0:04:08]} 25. a4 {[%emt 0:04:20]} g5 {[%emt 0:01:13]} 26. Nd5 {[%emt 0:01:03]} Nxd5 {[%emt 0:03:52]} 27. exd5 {[%emt 0:00:07]} Qg6 {[%emt 0:00:35]} 28. Be4 {[%emt 0:04:03]} Qh5 {[%emt 0:01:52]} 29. Bf3 {[%emt 0:00:05]} Qg6 {[%emt 0:00:28]} 30. Be4 {[%emt 0:00:04]} Qh5 {[%emt 0:00:04]} 31. Bf3 {[%emt 0:06:11]} g4 32. Bxg4 {[%emt 0:00:30]} Qxd5 {[%emt 0:06:11]} 33. Bh4 {[%emt 0:00:30]} Rb8 {[%emt 0:00:30]} 34. Bf3 {[%emt 0:00:30]} 1/2-1/2

[Event "FRA-ch Teams Top 16-B 2022"]
[Site "Chartres"]
[Date "2022.06.14"]
[Round "6.8"]
[White "Benmesbah, Natacha"]
[Black "Guichard, Pauline"]
[Result "1/2-1/2"]
[ECO "C58"]
[WhiteElo "2251"]
[BlackElo "2377"]
[Annotator "RC"]
[PlyCount "75"]
[EventDate "2022.06.09"]
[EventType "team-tourn"]
[EventCountry "FRA"]
[SourceTitle "playchess.com"]
[Source "ChessBase"]
[SourceQuality "1"]
[TimeControl "40/5400+30:1800+30"]

1. e4 {[%emt 0:00:26]} e5 {[%emt 0:00:05]} 2. Nf3 {[%emt 0:00:05]} Nc6 {[%emt 0:00:06]} 3. Bc4 {[%emt 0:00:02]} Nf6 {[%emt 0:00:13]} 4. Ng5 {[%emt 0:00:10]} d5 {[%emt 0:00:21]} 5. exd5 {[%emt 0:00:04]} Na5 {[%emt 0:00:05]} 6. Bb5+ {[%emt 0:00:04]} c6 {[%emt 0:00:05]} 7. dxc6 {[%emt 0:00:02]} bxc6 {[%emt 0:00:06]} 8. Bd3 {[%emt 0:00:03]} Nd5 {[%emt 0:02:00]} 9. Nf3 {[%emt 0:00:50]} Bd6 {[%emt 0:01:05]} 10. Nc3 {[%emt 0:00:50]} f5 {[%emt 0:13:29]} 11. Nxd5 {[%emt 0:01:44]} cxd5 {[%emt 0:00:06]} 12. b4 {[%emt 0:00:02]} Nc6 {[%emt 0:01:39]} 13. Bb5 {[%emt 0:00:12]} Bb7 {[%emt 0:08:05]} 14. Bb2 {[%emt 0:09:17]} O-O {[%emt 0:04:06]} 15. Bxc6 {[%emt 0:07:12]} Bxc6 {[%emt 0:00:23]} 16. Nxe5 {[%emt 0:00:07]} Re8 {[%emt 0:01:22]} 17. d4 {[%emt 0:00:21]} Bxb4+ {[%emt 0:02:30]} 18. c3 {[%emt 0:00:05]} Bd6 {[%emt 0:01:07]} 19. O-O {[%emt 0:00:10]} Bxe5 {[%emt 0:08:39]} 20. dxe5 {[%emt 0:00:04]} Rxe5 {[%emt 0:00:28]} 21. Bc1 {[%emt 0:00:50]} Bb5 {[%emt 0:19:04]} 22. Re1 {[%emt 0:01:47]} Ba4 {[%emt 0:01:05]} 23. Qd2 {[%emt 0:01:26]} Rxe1+ {[%emt 0:04:58]} 24. Qxe1 {[%emt 0:00:04]} Qd6 {[%emt 0:00:54]} 25. Be3 {[%emt 0:05:49]} f4 {[%emt 0:02:45]} 26. Bd4 {[%emt 0:00:13]} f3 {[%emt 0:00:51]} 27. Qe5 {[%emt 0:01:35]} Qxe5 {[%emt 0:01:27]} 28. Bxe5 {[%emt 0:00:41]} fxg2 {[%emt 0:00:41]} 29. Bd4 {[%emt 0:07:15]} Bc2 {[%emt 0:02:59]} 30. Kxg2 {[%emt 0:00:26]} a5 {[%emt 0:04:36]} 31. Re1 {[%emt 0:03:20]} Kf7 {[%emt 0:00:16]} 32. Re2 {[%emt 0:02:07]} Bf5 {[%emt 0:10:58]} 33. Rb2 {[%emt 0:01:57]} g5 {[%emt 0:01:18]} 34. Rb7+ {[%emt 0:04:00]} Kg6 {[%emt 0:00:08]} 35. Rb6+ {[%emt 0:33:09]} Kh5 {[%emt 0:00:06]} 36. f3 {[%emt 0:02:26]} Bd3 {[%emt 0:03:55]} 37. Bg7 {[%emt 0:04:00]} Ra6 {[%emt 0:00:36]} 38. Rxa6 {[%emt 0:01:02]} 1/2-1/2

[Event "FRA-ch Teams Top 16-B 2022"]
[Site "Chartres"]
[Date "2022.06.14"]
[Round "6.9"]
[White "Donchenko, Alexander"]
[Black "Di Nicolantonio, Lucas"]
[Result "1-0"]
[ECO "D46"]
[WhiteElo "2599"]
[BlackElo "2399"]
[Annotator "RC"]
[PlyCount "113"]
[EventDate "2022.06.09"]
[EventType "team-tourn"]
[EventCountry "FRA"]
[SourceTitle "playchess.com"]
[Source "ChessBase"]
[SourceQuality "1"]
[TimeControl "40/5400+30:1800+30"]

1. c4 {[%emt 0:00:02]} c6 {[%emt 0:00:50]} 2. d4 {[%emt 0:00:15]} d5 {[%emt 0:00:07]} 3. Nf3 {[%emt 0:00:05]} Nf6 {[%emt 0:00:09]} 4. e3 {[%emt 0:00:13]} e6 {[%emt 0:01:03]} 5. Nbd2 {[%emt 0:00:31]} Be7 {[%emt 0:01:52]} 6. Bd3 {[%emt 0:03:52]} O-O {[%emt 0:01:43]} 7. O-O {[%emt 0:07:24]} Nbd7 {[%emt 0:03:52]} 8. e4 {[%emt 0:05:52]} dxe4 {[%emt 0:01:12]} 9. Nxe4 {[%emt 0:00:06]} c5 {[%emt 0:03:10]} 10. Nxc5 {[%emt 0:08:56]} Nxc5 {[%emt 0:08:31]} 11. dxc5 {[%emt 0:00:56]} Bxc5 {[%emt 0:00:12]} 12. Qc2 {[%emt 0:11:44]} b6 {[%emt 0:31:28]} 13. Bg5 {[%emt 0:11:14]} h6 {[%emt 0:00:50]} 14. Bh7+ {[%emt 0:02:29]} Kh8 {[%emt 0:00:08]} 15. Be4 {[%emt 0:00:21]} Rb8 {[%emt 0:00:32]} 16. Bf4 {[%emt 0:03:45]} Bb7 {[%emt 0:00:36]} 17. Rad1 {[%emt 0:03:41]} Qe7 {[%emt 0:07:03]} 18. Bxb7 {[%emt 0:00:22]} Rxb7 {[%emt 0:00:05]} 19. Ne5 {[%emt 0:00:36]} Rc8 {[%emt 0:01:20]} 20. Qe2 {[%emt 0:03:48]} Nd7 {[%emt 0:06:58]} 21. Ng4 {[%emt 0:09:01]} Nf6 {[%emt 0:07:23]} 22. Ne5 {[%emt 0:01:03]} Nd7 {[%emt 0:00:15]} 23. Nd3 {[%emt 0:01:46]} Nf6 {[%emt 0:04:13]} 24. Qf3 {[%emt 0:02:27]} Rd7 {[%emt 0:03:53]} 25. Ne5 {[%emt 0:00:18]} Rxd1 {[%emt 0:00:17]} 26. Rxd1 {[%emt 0:00:03]} Kg8 {[%emt 0:00:32]} 27. h3 {[%emt 0:07:51]} Rd8 {[%emt 0:03:53]} 28. Rb1 {[%emt 0:00:32]} Rc8 {[%emt 0:01:26]} 29. Rd1 {[%emt 0:03:34]} Rd8 {[%emt 0:00:08]} 30. Rxd8+ {[%emt 0:00:17]} Qxd8 {[%emt 0:00:03]} 31. Nc6 {[%emt 0:00:08]} Qd7 {[%emt 0:00:32]} 32. b4 {[%emt 0:00:14]} Bd6 {[%emt 0:04:46]} 33. Be3 {[%emt 0:01:01]} e5 {[%emt 0:00:54]} 34. b5 {[%emt 0:00:26]} e4 {[%emt 0:02:09]} 35. Qe2 {[%emt 0:00:02]} Ne8 {[%emt 0:04:58]} 36. Qd2 {[%emt 0:03:31]} Qe6 {[%emt 0:00:48]} 37. Nxa7 {[%emt 0:02:09]} Qxc4 {[%emt 0:00:03]} 38. Bxb6 {[%emt 0:00:47]} Be5 {[%emt 0:01:01]} 39. Be3 {[%emt 0:02:10]} Nd6 {[%emt 0:00:20]} 40. Nc6 {[%emt 0:05:18]} Qxb5 {[%emt 0:00:34]} 41. Nxe5 {[%emt 0:03:22]} Qxe5 {[%emt 0:01:05]} 42. Bf4 {[%emt 0:00:29]} Qa1+ {[%emt 0:00:31]} 43. Kh2 {[%emt 0:00:02]} Nc4 {[%emt 0:03:58]} 44. Qd8+ {[%emt 0:01:07]} Kh7 {[%emt 0:00:11]} 45. Qd5 {[%emt 0:00:21]} Qxa2 {[%emt 0:01:30]} 46. Qxe4+ {[%emt 0:00:14]} Kg8 {[%emt 0:05:02]} 47. Qe8+ {[%emt 0:00:16]} Kh7 {[%emt 0:00:05]} 48. Qxf7 {[%emt 0:00:06]} Qc2 {[%emt 0:01:44]} 49. Qe6 {[%emt 0:05:30]} Qd3 {[%emt 0:02:06]} 50. h4 {[%emt 0:02:05]} Nd2 {[%emt 0:08:29]} 51. h5 {[%emt 0:01:50]} Nf1+ {[%emt 0:02:43]} 52. Kg1 {[%emt 0:00:42]} Qd1 {[%emt 0:00:05]} 53. Qf5+ {[%emt 0:01:48]} Kh8 {[%emt 0:03:20]} 54. Qc8+ {[%emt 0:00:08]} Kh7 {[%emt 0:00:06]} 55. Qc1 {[%emt 0:00:04]} Ne3+ {[%emt 0:02:57]} 56. Qxd1 {[%emt 0:00:05]} Nxd1 {[%emt 0:00:02]} 57. Be5 {[%emt 0:00:06]} 1-0